[Event "Early-Titled-Tuesday-Blitz-October-10-2023"]
[Site "Chess.com"]
[Date "2023.10.10"]
[Round "2"]
[White "mortngabriel"]
[Black "InitiatingASC"]
[Result "1-0"]
[WhiteElo "2537"]
[BlackElo "2330"]
[TimeControl "180+1"]
[EndTime "8:19:18 PDT"]
[Termination "mortngabriel won by checkmate"]

1. d4 {[%clk 0:03:00.9]} 1... d5 {[%clk 0:02:57.9]} 2. c4 {[%clk 0:03:00.6]}
2... e6 {[%clk 0:02:58]} 3. Nf3 {[%clk 0:03:00.9]} 3... c5 {[%clk 0:02:57.9]} 4.
cxd5 {[%clk 0:02:59.9]} 4... exd5 {[%clk 0:02:58.2]} 5. g3 {[%clk 0:02:59.5]}
5... Nc6 {[%clk 0:02:58.3]} 6. Bg2 {[%clk 0:03:00]} 6... Nf6 {[%clk 0:02:58.9]}
7. O-O {[%clk 0:03:00.4]} 7... Be7 {[%clk 0:02:59.3]} 8. a3 {[%clk 0:02:55.8]}
8... c4 {[%clk 0:02:55.4]} 9. Nc3 {[%clk 0:02:48.6]} 9... O-O {[%clk 0:02:54.1]}
10. Ne5 {[%clk 0:02:48.7]} 10... Be6 {[%clk 0:02:38.8]} 11. Nxc6 {[%clk
0:02:47.1]} 11... bxc6 {[%clk 0:02:38.5]} 12. e4 {[%clk 0:02:48]} 12... Rc8
{[%clk 0:02:18.6]} 13. e5 {[%clk 0:02:45.6]} 13... Ne8 {[%clk 0:02:17.7]} 14. f4
{[%clk 0:02:46.1]} 14... g6 {[%clk 0:02:18]} 15. g4 {[%clk 0:02:30.9]} 15... Ng7
{[%clk 0:02:18.1]} 16. Bh3 {[%clk 0:01:45]} 16... Qd7 {[%clk 0:02:09.9]} 17. f5
{[%clk 0:01:33.1]} 17... gxf5 {[%clk 0:01:35.7]} 18. g5 {[%clk 0:01:33.5]} 18...
f4 {[%clk 0:00:42.8]} 19. Bxe6 {[%clk 0:01:28.4]} 19... Nxe6 {[%clk 0:00:43.5]}
20. Bxf4 {[%clk 0:01:22.1]} 20... Nxf4 {[%clk 0:00:43.5]} 21. Rxf4 {[%clk
0:01:22.8]} 21... Bxg5 {[%clk 0:00:44]} 22. Rg4 {[%clk 0:01:17.8]} 22... Qf5
{[%clk 0:00:26.7]} 23. h4 {[%clk 0:01:08.5]} 23... h6 {[%clk 0:00:26.5]} 24.
hxg5 {[%clk 0:01:08.1]} 24... hxg5 {[%clk 0:00:26.7]} 25. Qe2 {[%clk 0:01:03.8]}
25... f6 {[%clk 0:00:25.7]} 26. Rf1 {[%clk 0:01:03.5]} 26... Qe6 {[%clk
0:00:20.9]} 27. exf6 {[%clk 0:00:59.5]} 27... Rxf6 {[%clk 0:00:20.5]} 28. Rxg5+
{[%clk 0:00:53.2]} 28... Kf7 {[%clk 0:00:20.7]} 29. Qxe6+ {[%clk 0:00:39.8]}
29... Kxe6 {[%clk 0:00:21.6]} 30. Rxf6+ {[%clk 0:00:32.9]} 30... Kxf6 {[%clk
0:00:21.9]} 31. Rg2 {[%clk 0:00:33.1]} 31... Re8 {[%clk 0:00:21.3]} 32. Re2
{[%clk 0:00:31.2]} 32... Rg8+ {[%clk 0:00:21.5]} 33. Kf2 {[%clk 0:00:30.9]}
33... Rg4 {[%clk 0:00:21.7]} 34. Ke3 {[%clk 0:00:30.3]} 34... Rg3+ {[%clk
0:00:21.6]} 35. Kd2 {[%clk 0:00:26.7]} 35... Rd3+ {[%clk 0:00:21.6]} 36. Kc2
{[%clk 0:00:26.9]} 36... Rxd4 {[%clk 0:00:22.4]} 37. Na4 {[%clk 0:00:21.8]}
37... Rh4 {[%clk 0:00:21.3]} 38. Nc5 {[%clk 0:00:17.9]} 38... d4 {[%clk
0:00:18.7]} 39. Re6+ {[%clk 0:00:18]} 39... Kf5 {[%clk 0:00:18.4]} 40. Rxc6
{[%clk 0:00:18.6]} 40... Rh2+ {[%clk 0:00:18.7]} 41. Kb1 {[%clk 0:00:18.6]}
41... Ke5 {[%clk 0:00:18.3]} 42. Rc8 {[%clk 0:00:15.6]} 42... d3 {[%clk
0:00:17.3]} 43. Rd8 {[%clk 0:00:15]} 43... Rh7 {[%clk 0:00:16]} 44. Na4 {[%clk
0:00:13.4]} 44... Ke4 {[%clk 0:00:15.1]} 45. Nc3+ {[%clk 0:00:13.4]} 45... Ke3
{[%clk 0:00:15.6]} 46. Re8+ {[%clk 0:00:11.8]} 46... Kd2 {[%clk 0:00:15.5]} 47.
Ne4+ {[%clk 0:00:10.1]} 47... Kd1 {[%clk 0:00:14.7]} 48. Nd6 {[%clk 0:00:09.7]}
48... Rc7 {[%clk 0:00:13.7]} 49. Re4 {[%clk 0:00:06.6]} 49... c3 {[%clk
0:00:13.5]} 50. bxc3 {[%clk 0:00:06.9]} 50... Rxc3 {[%clk 0:00:13.8]} 51. a4
{[%clk 0:00:03.7]} 51... Rb3+ {[%clk 0:00:13.2]} 52. Ka2 {[%clk 0:00:03.8]}
52... Rb6 {[%clk 0:00:12.6]} 53. Nc4 {[%clk 0:00:03.2]} 53... Ra6 {[%clk
0:00:11.9]} 54. Kb3 {[%clk 0:00:03]} 54... Kc1 {[%clk 0:00:10.1]} 55. Rd4 {[%clk
0:00:03.3]} 55... d2 {[%clk 0:00:07.4]} 56. Rxd2 {[%clk 0:00:02.3]} 56... Rc6
{[%clk 0:00:06.7]} 57. Rd5 {[%clk 0:00:02.5]} 57... a6 {[%clk 0:00:06.6]} 58.
Kb4 {[%clk 0:00:03.1]} 58... Kc2 {[%clk 0:00:06.2]} 59. Rd6 {[%clk 0:00:03.6]}
59... Rc8 {[%clk 0:00:04.8]} 60. Rxa6 {[%clk 0:00:03.9]} 60... Rb8+ {[%clk
0:00:05.5]} 61. Rb6 {[%clk 0:00:04.5]} 61... Ra8 {[%clk 0:00:06]} 62. a5 {[%clk
0:00:05.1]} 62... Rh8 {[%clk 0:00:05.8]} 63. Nd6 {[%clk 0:00:05.4]} 63... Rh1
{[%clk 0:00:06.7]} 64. Kb5 {[%clk 0:00:05.6]} 64... Rb1+ {[%clk 0:00:07.4]} 65.
Ka6 {[%clk 0:00:06.3]} 65... Ra1 {[%clk 0:00:08.1]} 66. Nb7 {[%clk 0:00:05.1]}
66... Kc3 {[%clk 0:00:08.5]} 67. Rb5 {[%clk 0:00:03.9]} 67... Kc4 {[%clk
0:00:09]} 68. Rc5+ {[%clk 0:00:04.1]} 68... Kd4 {[%clk 0:00:09]} 69. Rc8 {[%clk
0:00:04.3]} 69... Kd5 {[%clk 0:00:09.4]} 70. Kb6 {[%clk 0:00:04.4]} 70... Rb1+
{[%clk 0:00:09.3]} 71. Ka7 {[%clk 0:00:04.9]} 71... Ra1 {[%clk 0:00:10.2]} 72.
a6 {[%clk 0:00:05.5]} 72... Ke6 {[%clk 0:00:09.8]} 73. Rc2 {[%clk 0:00:05.1]}
73... Kd7 {[%clk 0:00:10.4]} 74. Nc5+ {[%clk 0:00:04.4]} 74... Kc6 {[%clk
0:00:10]} 75. Ne4+ {[%clk 0:00:04]} 75... Kb5 {[%clk 0:00:10.2]} 76. Rb2+ {[%clk
0:00:04.3]} 76... Ka5 {[%clk 0:00:09.7]} 77. Kb7 {[%clk 0:00:04.3]} 77... Rh1
{[%clk 0:00:09.3]} 78. Nd6 {[%clk 0:00:03.2]} 78... Rh7+ {[%clk 0:00:10.1]} 79.
Kc6 {[%clk 0:00:01.4]} 79... Kxa6 {[%clk 0:00:10.2]} 80. Ra2# {[%clk 0:00:02]}
1-0

[Event "Early-Titled-Tuesday-Blitz-October-10-2023"]
[Site "Chess.com"]
[Date "2023.10.10"]
[Round "2"]
[White "Doomfist26"]
[Black "Beca95"]
[Result "1/2-1/2"]
[WhiteElo "2610"]
[BlackElo "2895"]
[TimeControl "180+1"]
[EndTime "8:19:22 PDT"]
[Termination "Game drawn by repetition"]

1. e4 {[%clk 0:03:00.9]} 1... c5 {[%clk 0:02:53.3]} 2. Nf3 {[%clk 0:03:00.7]}
2... e6 {[%clk 0:02:53.8]} 3. d4 {[%clk 0:02:58.6]} 3... cxd4 {[%clk 0:02:54.7]}
4. Nxd4 {[%clk 0:02:59.5]} 4... a6 {[%clk 0:02:54.9]} 5. c4 {[%clk 0:02:59.3]}
5... Nf6 {[%clk 0:02:53.4]} 6. Nc3 {[%clk 0:02:59.7]} 6... Qc7 {[%clk
0:02:53.6]} 7. a3 {[%clk 0:02:59.2]} 7... b6 {[%clk 0:02:52.2]} 8. Bd3 {[%clk
0:02:55.7]} 8... Bb7 {[%clk 0:02:50.3]} 9. f4 {[%clk 0:02:55.6]} 9... Bc5 {[%clk
0:02:42.5]} 10. Nc2 {[%clk 0:02:51.7]} 10... O-O {[%clk 0:02:37.9]} 11. b4
{[%clk 0:02:45]} 11... Be7 {[%clk 0:02:36.9]} 12. O-O {[%clk 0:02:32]} 12... d5
{[%clk 0:02:35.2]} 13. exd5 {[%clk 0:02:19.9]} 13... exd5 {[%clk 0:02:34.2]} 14.
Nxd5 {[%clk 0:02:19.9]} 14... Nxd5 {[%clk 0:02:31.6]} 15. cxd5 {[%clk
0:02:20.2]} 15... Bf6 {[%clk 0:02:31.2]} 16. Rb1 {[%clk 0:02:13.6]} 16... Rd8
{[%clk 0:02:30.3]} 17. Be4 {[%clk 0:02:07]} 17... Nd7 {[%clk 0:02:26.9]} 18. Ne3
{[%clk 0:02:00]} 18... Nf8 {[%clk 0:02:25.8]} 19. Ng4 {[%clk 0:01:56.3]} 19...
Nd7 {[%clk 0:01:57]} 20. Be3 {[%clk 0:01:18.2]} 20... Qd6 {[%clk 0:01:51.5]} 21.
Qd3 {[%clk 0:01:10.5]} 21... h5 {[%clk 0:01:48.3]} 22. Nf2 {[%clk 0:01:05.6]}
22... Bh4 {[%clk 0:01:38.1]} 23. Bf3 {[%clk 0:00:57.8]} 23... Bxf2+ {[%clk
0:01:35]} 24. Rxf2 {[%clk 0:00:57.9]} 24... Nf6 {[%clk 0:01:35.2]} 25. Rd1
{[%clk 0:00:57.3]} 25... Rac8 {[%clk 0:01:30.2]} 26. Rfd2 {[%clk 0:00:43.8]}
26... Ng4 {[%clk 0:01:27.4]} 27. Bxg4 {[%clk 0:00:33.3]} 27... hxg4 {[%clk
0:01:28.3]} 28. Qf5 {[%clk 0:00:32.3]} 28... Rc4 {[%clk 0:01:13.7]} 29. Qxg4
{[%clk 0:00:28.1]} 29... Re8 {[%clk 0:01:12.8]} 30. Bd4 {[%clk 0:00:24.2]} 30...
f6 {[%clk 0:01:12.1]} 31. Qg6 {[%clk 0:00:18.4]} 31... Rcc8 {[%clk 0:00:48.8]}
32. Be5 {[%clk 0:00:16.8]} 32... Qf8 {[%clk 0:00:46.5]} 33. d6 {[%clk
0:00:13.7]} 33... Red8 {[%clk 0:00:35.5]} 34. d7 {[%clk 0:00:13.5]} 34... Rc4
{[%clk 0:00:33.5]} 35. Bb2 {[%clk 0:00:06.5]} 35... Qf7 {[%clk 0:00:31.7]} 36.
f5 {[%clk 0:00:05.2]} 36... Be4 {[%clk 0:00:31.7]} 37. Qxf7+ {[%clk 0:00:04.2]}
37... Kxf7 {[%clk 0:00:31.3]} 38. g4 {[%clk 0:00:05.1]} 38... Bc6 {[%clk
0:00:29.7]} 39. Rd4 {[%clk 0:00:04.1]} 39... Rxd4 {[%clk 0:00:29.4]} 40. Rxd4
{[%clk 0:00:04.4]} 40... Bb5 {[%clk 0:00:29]} 41. Kf2 {[%clk 0:00:04.4]} 41...
Rxd7 {[%clk 0:00:29.3]} 42. Rxd7+ {[%clk 0:00:04.6]} 42... Bxd7 {[%clk
0:00:30.2]} 43. Bd4 {[%clk 0:00:05.4]} 43... b5 {[%clk 0:00:29.5]} 44. Ke3
{[%clk 0:00:05.7]} 44... g6 {[%clk 0:00:28.2]} 45. fxg6+ {[%clk 0:00:05.7]}
45... Kxg6 {[%clk 0:00:29.1]} 46. Kf4 {[%clk 0:00:06.5]} 46... f5 {[%clk
0:00:14.1]} 47. g5 {[%clk 0:00:06.5]} 47... Be6 {[%clk 0:00:14.7]} 48. h4 {[%clk
0:00:06.8]} 48... Bb3 {[%clk 0:00:14.4]} 49. Bf2 {[%clk 0:00:06.8]} 49... Bd1
{[%clk 0:00:14.3]} 50. Be1 {[%clk 0:00:06.2]} 50... Be2 {[%clk 0:00:14.4]} 51.
Bg3 {[%clk 0:00:06.1]} 51... Bd1 {[%clk 0:00:14.7]} 52. Ke5 {[%clk 0:00:06.7]}
52... Be2 {[%clk 0:00:14.8]} 53. Kd6 {[%clk 0:00:06.4]} 53... Bd3 {[%clk
0:00:12.8]} 54. Kc5 {[%clk 0:00:03.6]} 54... Bc2 {[%clk 0:00:09.3]} 55. Kb6
{[%clk 0:00:03.8]} 55... Ba4 {[%clk 0:00:09.4]} 56. Kxa6 {[%clk 0:00:04.1]}
56... Kh5 {[%clk 0:00:10]} 57. Kb6 {[%clk 0:00:03.3]} 57... Kg6 {[%clk
0:00:10.2]} 58. Kc5 {[%clk 0:00:03.3]} 58... Kh5 {[%clk 0:00:10.3]} 59. Kd4
{[%clk 0:00:03.9]} 59... Kg6 {[%clk 0:00:10.3]} 60. Ke5 {[%clk 0:00:04.4]} 60...
Bd1 {[%clk 0:00:10.5]} 61. Kf4 {[%clk 0:00:04.6]} 61... Be2 {[%clk 0:00:10]} 62.
Be1 {[%clk 0:00:05.1]} 62... Bd1 {[%clk 0:00:10]} 63. Ke5 {[%clk 0:00:05.4]}
63... Bc2 {[%clk 0:00:10.1]} 64. Bd2 {[%clk 0:00:05.7]} 64... Bd3 {[%clk
0:00:06.7]} 65. Be3 {[%clk 0:00:05.2]} 65... Bc2 {[%clk 0:00:07]} 66. Kf4 {[%clk
0:00:05.2]} 66... Bd1 {[%clk 0:00:07.2]} 67. Bc5 {[%clk 0:00:04.8]} 67... Bc2
{[%clk 0:00:07]} 68. Be7 {[%clk 0:00:05.4]} 68... Kh5 {[%clk 0:00:06.5]} 69. Ke5
{[%clk 0:00:03.3]} 69... Kg6 {[%clk 0:00:06.9]} 70. Kf4 {[%clk 0:00:03.3]} 70...
Bd1 {[%clk 0:00:07.2]} 71. Bc5 {[%clk 0:00:03.2]} 71... Bc2 {[%clk 0:00:07.3]}
72. Bf2 {[%clk 0:00:03.9]} 72... Kh5 {[%clk 0:00:07.7]} 73. Bg3 {[%clk
0:00:04.5]} 73... Kg6 {[%clk 0:00:08]} 74. Bf2 {[%clk 0:00:05.2]} 74... Kh5
{[%clk 0:00:08.3]} 75. Bg3 {[%clk 0:00:05.9]} 75... Kg6 {[%clk 0:00:07.9]} 76.
Bf2 {[%clk 0:00:06.6]} 1/2-1/2

[Event "Early-Titled-Tuesday-Blitz-October-10-2023"]
[Site "Chess.com"]
[Date "2023.10.10"]
[Round "2"]
[White "kidagent"]
[Black "a-z30"]
[Result "0-1"]
[WhiteElo "2258"]
[BlackElo "2506"]
[TimeControl "180+1"]
[EndTime "8:19:23 PDT"]
[Termination "a-z30 won on time"]

1. c4 {[%clk 0:03:00.9]} 1... e6 {[%clk 0:02:59.4]} 2. g3 {[%clk 0:02:59.4]}
2... d5 {[%clk 0:02:59.2]} 3. cxd5 {[%clk 0:02:59.8]} 3... exd5 {[%clk
0:02:58.8]} 4. Nf3 {[%clk 0:03:00.7]} 4... Nf6 {[%clk 0:02:55.8]} 5. Bg2 {[%clk
0:03:00.9]} 5... Bd6 {[%clk 0:02:38.5]} 6. O-O {[%clk 0:02:57.1]} 6... O-O
{[%clk 0:02:38.6]} 7. d3 {[%clk 0:02:55.8]} 7... Re8 {[%clk 0:02:38.2]} 8. Nc3
{[%clk 0:02:55.7]} 8... c5 {[%clk 0:02:27.4]} 9. Bg5 {[%clk 0:02:54.1]} 9... d4
{[%clk 0:02:11.6]} 10. Ne4 {[%clk 0:02:50.1]} 10... Be7 {[%clk 0:01:57]} 11.
Bxf6 {[%clk 0:02:44.8]} 11... gxf6 {[%clk 0:01:49.6]} 12. Re1 {[%clk 0:02:30.6]}
12... Nc6 {[%clk 0:01:45.6]} 13. Rc1 {[%clk 0:02:27.3]} 13... b6 {[%clk
0:01:31.9]} 14. Qd2 {[%clk 0:02:23.9]} 14... f5 {[%clk 0:01:26.2]} 15. Neg5
{[%clk 0:02:18.9]} 15... Bb7 {[%clk 0:01:24.1]} 16. Qf4 {[%clk 0:02:07.7]} 16...
Qd6 {[%clk 0:01:15.3]} 17. Qxf5 {[%clk 0:02:04.9]} 17... Qg6 {[%clk 0:01:06.8]}
18. Qxg6+ {[%clk 0:01:46.9]} 18... hxg6 {[%clk 0:01:06.4]} 19. h4 {[%clk
0:01:43.8]} 19... Nb4 {[%clk 0:01:05]} 20. a3 {[%clk 0:01:26]} 20... Nd5 {[%clk
0:01:04.5]} 21. Nd2 {[%clk 0:01:18.4]} 21... Rad8 {[%clk 0:00:58.3]} 22. Nc4
{[%clk 0:01:10.8]} 22... Bxg5 {[%clk 0:00:51.3]} 23. hxg5 {[%clk 0:01:10]} 23...
Re7 {[%clk 0:00:42.4]} 24. e4 {[%clk 0:00:40.8]} 24... dxe3 {[%clk 0:00:37]} 25.
fxe3 {[%clk 0:00:37.5]} 25... Ba6 {[%clk 0:00:21.4]} 26. Rcd1 {[%clk 0:00:31.9]}
26... Nc7 {[%clk 0:00:14.7]} 27. Kf2 {[%clk 0:00:30.2]} 27... Ne6 {[%clk
0:00:14.4]} 28. Ne5 {[%clk 0:00:27.7]} 28... Bb7 {[%clk 0:00:10.7]} 29. Bxb7
{[%clk 0:00:26.4]} 29... Rxb7 {[%clk 0:00:11.1]} 30. Nf3 {[%clk 0:00:23.8]}
30... Rbd7 {[%clk 0:00:10]} 31. Ke2 {[%clk 0:00:22.3]} 31... Rd5 {[%clk
0:00:10.2]} 32. e4 {[%clk 0:00:21.2]} 32... R5d7 {[%clk 0:00:10.2]} 33. Rd2
{[%clk 0:00:20.8]} 33... Kg7 {[%clk 0:00:09.8]} 34. Red1 {[%clk 0:00:21]} 34...
Nd4+ {[%clk 0:00:09.4]} 35. Nxd4 {[%clk 0:00:20.6]} 35... Rxd4 {[%clk
0:00:10.3]} 36. Ke3 {[%clk 0:00:19.8]} 36... R8d6 {[%clk 0:00:10.3]} 37. Rf1
{[%clk 0:00:19.1]} 37... c4 {[%clk 0:00:10.2]} 38. Rfd1 {[%clk 0:00:17.7]} 38...
cxd3 {[%clk 0:00:09.9]} 39. Rxd3 {[%clk 0:00:18.6]} 39... Rxd3+ {[%clk
0:00:10.4]} 40. Rxd3 {[%clk 0:00:18.8]} 40... Rc6 {[%clk 0:00:11.3]} 41. Rd7
{[%clk 0:00:17.3]} 41... a5 {[%clk 0:00:11]} 42. Rb7 {[%clk 0:00:17.4]} 42...
Kf8 {[%clk 0:00:09.6]} 43. Kd4 {[%clk 0:00:16.9]} 43... Ke8 {[%clk 0:00:07.4]}
44. Kd5 {[%clk 0:00:16.8]} 44... Re6 {[%clk 0:00:07.2]} 45. b4 {[%clk
0:00:16.7]} 45... axb4 {[%clk 0:00:06.8]} 46. axb4 {[%clk 0:00:17]} 46... Kf8
{[%clk 0:00:07]} 47. b5 {[%clk 0:00:17.1]} 47... Ke8 {[%clk 0:00:06.2]} 48. Rc7
{[%clk 0:00:17.2]} 48... Kf8 {[%clk 0:00:05]} 49. Rc6 {[%clk 0:00:17.3]} 49...
Re7 {[%clk 0:00:05.1]} 50. Rxb6 {[%clk 0:00:16.9]} 50... Rd7+ {[%clk 0:00:05.7]}
51. Ke5 {[%clk 0:00:17.2]} 51... Rd3 {[%clk 0:00:05.5]} 52. Rb8+ {[%clk
0:00:11.9]} 52... Kg7 {[%clk 0:00:04.9]} 53. b6 {[%clk 0:00:12.8]} 53... Rxg3
{[%clk 0:00:04.5]} 54. b7 {[%clk 0:00:13.1]} 54... Rxg5+ {[%clk 0:00:04.6]} 55.
Kd6 {[%clk 0:00:12.6]} 55... Rb5 {[%clk 0:00:02.2]} 56. Kc6 {[%clk 0:00:13.2]}
56... Rb1 {[%clk 0:00:02.2]} 57. Rd8 {[%clk 0:00:13.3]} 57... Rc1+ {[%clk
0:00:01.8]} 58. Kb6 {[%clk 0:00:13.6]} 58... Rb1+ {[%clk 0:00:02.2]} 59. Kc7
{[%clk 0:00:14.2]} 59... Rc1+ {[%clk 0:00:02.5]} 60. Kb8 {[%clk 0:00:14.2]}
60... Rb1 {[%clk 0:00:02.7]} 61. Rd4 {[%clk 0:00:13.8]} 61... Kf6 {[%clk
0:00:03.6]} 62. Kc7 {[%clk 0:00:13.2]} 62... Ke5 {[%clk 0:00:03.7]} 63. Ra4
{[%clk 0:00:12.4]} 63... Rxb7+ {[%clk 0:00:03.7]} 64. Kxb7 {[%clk 0:00:12.2]}
64... g5 {[%clk 0:00:04.6]} 65. Kc6 {[%clk 0:00:12.2]} 65... g4 {[%clk
0:00:05.5]} 66. Kc5 {[%clk 0:00:12.4]} 66... g3 {[%clk 0:00:06]} 67. Ra1 {[%clk
0:00:11]} 67... Kxe4 {[%clk 0:00:05.5]} 68. Kd6 {[%clk 0:00:10.7]} 68... f5
{[%clk 0:00:05.3]} 69. Ke6 {[%clk 0:00:10.5]} 69... f4 {[%clk 0:00:05.6]} 70.
Kf6 {[%clk 0:00:09.6]} 70... g2 {[%clk 0:00:05.5]} 71. Rg1 {[%clk 0:00:07.9]}
71... f3 {[%clk 0:00:05.7]} 72. Kg5 {[%clk 0:00:08.6]} 72... f2 {[%clk
0:00:05.2]} 73. Rxg2 {[%clk 0:00:09.4]} 73... f1=Q {[%clk 0:00:05.8]} 74. Rg4+
{[%clk 0:00:10.2]} 74... Ke5 {[%clk 0:00:05.4]} 75. Kh5 {[%clk 0:00:05.9]} 75...
Qf6 {[%clk 0:00:06.3]} 76. Rg5+ {[%clk 0:00:03.7]} 76... Kf4 {[%clk 0:00:06.1]}
77. Rg4+ {[%clk 0:00:03.9]} 77... Kf3 {[%clk 0:00:06.4]} 78. Rg6 {[%clk
0:00:01.6]} 78... Qh8+ {[%clk 0:00:05.8]} 0-1

[Event "Early-Titled-Tuesday-Blitz-October-10-2023"]
[Site "Chess.com"]
[Date "2023.10.10"]
[Round "2"]
[White "AlexPapasimakopoulos"]
[Black "Shuvalov"]
[Result "1-0"]
[WhiteElo "2712"]
[BlackElo "2466"]
[TimeControl "180+1"]
[EndTime "8:19:36 PDT"]
[Termination "AlexPapasimakopoulos won on time"]

1. d4 {[%clk 0:03:00.9]} 1... Nf6 {[%clk 0:02:56.7]} 2. Nf3 {[%clk 0:02:58.5]}
2... c5 {[%clk 0:02:55.1]} 3. e3 {[%clk 0:02:57.7]} 3... d5 {[%clk 0:02:54.2]}
4. c4 {[%clk 0:02:52.4]} 4... cxd4 {[%clk 0:02:53]} 5. exd4 {[%clk 0:02:51.8]}
5... g6 {[%clk 0:02:51.3]} 6. Nc3 {[%clk 0:02:51.5]} 6... Bg7 {[%clk 0:02:51.6]}
7. Be2 {[%clk 0:02:51.5]} 7... O-O {[%clk 0:02:51.6]} 8. O-O {[%clk 0:02:51.4]}
8... Nc6 {[%clk 0:02:50.9]} 9. c5 {[%clk 0:02:45.7]} 9... Bg4 {[%clk 0:02:41.9]}
10. Be3 {[%clk 0:02:41.8]} 10... e6 {[%clk 0:02:37.6]} 11. a3 {[%clk 0:02:38.8]}
11... b6 {[%clk 0:02:24.7]} 12. Bb5 {[%clk 0:02:29.6]} 12... Rc8 {[%clk
0:02:21.4]} 13. Bxc6 {[%clk 0:02:23.3]} 13... Rxc6 {[%clk 0:02:21]} 14. Qa4
{[%clk 0:02:23.9]} 14... Rc8 {[%clk 0:02:15.2]} 15. Ne5 {[%clk 0:02:23.9]} 15...
bxc5 {[%clk 0:02:04.5]} 16. dxc5 {[%clk 0:02:19.5]} 16... Bf5 {[%clk 0:02:04.2]}
17. Bd4 {[%clk 0:02:00.6]} 17... h5 {[%clk 0:01:42.1]} 18. f3 {[%clk 0:01:56.9]}
18... Nd7 {[%clk 0:01:29.3]} 19. Nxd7 {[%clk 0:01:56]} 19... Bxd4+ {[%clk
0:01:29]} 20. Qxd4 {[%clk 0:01:55.8]} 20... Qxd7 {[%clk 0:01:29.4]} 21. g4
{[%clk 0:01:48.8]} 21... hxg4 {[%clk 0:01:14]} 22. fxg4 {[%clk 0:01:48.9]} 22...
e5 {[%clk 0:01:14.4]} 23. Qxe5 {[%clk 0:01:40.1]} 23... Be4 {[%clk 0:00:56.9]}
24. Nxe4 {[%clk 0:01:16.3]} 24... dxe4 {[%clk 0:00:57.8]} 25. Qxe4 {[%clk
0:01:15.3]} 25... Rxc5 {[%clk 0:00:54]} 26. Rad1 {[%clk 0:01:13.1]} 26... Qc7
{[%clk 0:00:47.6]} 27. Qf4 {[%clk 0:01:07.4]} 27... Qb6 {[%clk 0:00:44.9]} 28.
Qf2 {[%clk 0:01:05.3]} 28... Rc4 {[%clk 0:00:30.7]} 29. h3 {[%clk 0:01:00.5]}
29... Qb3 {[%clk 0:00:26.7]} 30. Kh2 {[%clk 0:00:43.6]} 30... Rc2 {[%clk
0:00:22.8]} 31. Rd2 {[%clk 0:00:42.1]} 31... Qb8+ {[%clk 0:00:22.1]} 32. Kg1
{[%clk 0:00:31.7]} 32... Rc6 {[%clk 0:00:17.2]} 33. Rd3 {[%clk 0:00:27.1]} 33...
Qc8 {[%clk 0:00:15.9]} 34. b4 {[%clk 0:00:23.5]} 34... Rc2 {[%clk 0:00:15.9]}
35. Rd2 {[%clk 0:00:12.9]} 35... Rc3 {[%clk 0:00:15.9]} 36. Kh2 {[%clk 0:00:09]}
36... Qc7+ {[%clk 0:00:14.2]} 37. Qf4 {[%clk 0:00:09.2]} 37... Qc6 {[%clk
0:00:11.2]} 38. Rdf2 {[%clk 0:00:02.4]} 38... Rxa3 {[%clk 0:00:09.7]} 39. Qe5
{[%clk 0:00:02.9]} 39... Qd7 {[%clk 0:00:07.9]} 40. Rf3 {[%clk 0:00:02.6]} 40...
Ra2+ {[%clk 0:00:07.6]} 41. Kg3 {[%clk 0:00:02.8]} 41... Qd2 {[%clk 0:00:06.1]}
42. Kh4 {[%clk 0:00:02]} 42... Qh6+ {[%clk 0:00:05.3]} 43. Kg3 {[%clk
0:00:02.5]} 43... Qd2 {[%clk 0:00:02.4]} 44. Qc3 {[%clk 0:00:03.1]} 44... Qxc3
{[%clk 0:00:02.2]} 45. Rxc3 {[%clk 0:00:02.8]} 45... Rb2 {[%clk 0:00:03.1]} 46.
Rf4 {[%clk 0:00:03.1]} 46... Rb8 {[%clk 0:00:02.5]} 47. Rcc4 {[%clk 0:00:03.7]}
47... Rb7 {[%clk 0:00:02.5]} 48. h4 {[%clk 0:00:03.9]} 48... Kg7 {[%clk
0:00:02.6]} 49. h5 {[%clk 0:00:04.2]} 49... g5 {[%clk 0:00:02.2]} 50. Rfe4
{[%clk 0:00:04.8]} 50... Rb3+ {[%clk 0:00:02.2]} 51. Kf2 {[%clk 0:00:05.4]}
51... Rd7 {[%clk 0:00:02.5]} 52. Re3 {[%clk 0:00:05.5]} 52... Rb2+ {[%clk
0:00:02]} 53. Kf3 {[%clk 0:00:05.8]} 53... Rb7 {[%clk 0:00:01.8]} 54. Re5 {[%clk
0:00:06]} 54... R7xb4 {[%clk 0:00:01.9]} 55. Rxg5+ {[%clk 0:00:06.1]} 55... Kh7
{[%clk 0:00:02.4]} 56. Rxb4 {[%clk 0:00:06]} 56... Rxb4 {[%clk 0:00:03.2]} 57.
Rf5 {[%clk 0:00:06.5]} 57... Rb7 {[%clk 0:00:03.8]} 58. Kf4 {[%clk 0:00:06.8]}
58... Kg7 {[%clk 0:00:04.7]} 59. Ra5 {[%clk 0:00:06.9]} 59... Rb4+ {[%clk
0:00:05]} 60. Kf5 {[%clk 0:00:07.3]} 60... Rb7 {[%clk 0:00:05.9]} 61. g5 {[%clk
0:00:07.8]} 61... Rc7 {[%clk 0:00:05.9]} 62. h6+ {[%clk 0:00:08.3]} 62... Kh7
{[%clk 0:00:06.4]} 63. Ra6 {[%clk 0:00:08.9]} 63... Rb7 {[%clk 0:00:06.5]} 64.
Kf6 {[%clk 0:00:09.5]} 64... Rc7 {[%clk 0:00:04.6]} 65. Rd6 {[%clk 0:00:09.5]}
65... Rb7 {[%clk 0:00:04.8]} 66. Kf5 {[%clk 0:00:10.1]} 66... a5 {[%clk
0:00:04.9]} 67. Ra6 {[%clk 0:00:09.7]} 67... Rb5+ {[%clk 0:00:05.2]} 68. Kf6
{[%clk 0:00:10.3]} 68... Rc5 {[%clk 0:00:05.4]} 69. Ra7 {[%clk 0:00:10.4]} 69...
Kg8 {[%clk 0:00:05]} 70. Ra8+ {[%clk 0:00:08.3]} 70... Kh7 {[%clk 0:00:05.4]}
71. Ra6 {[%clk 0:00:09]} 71... Rb5 {[%clk 0:00:04.8]} 72. Ra7 {[%clk 0:00:09.1]}
72... Kg8 {[%clk 0:00:04.5]} 73. Rd7 {[%clk 0:00:08.3]} 73... a4 {[%clk
0:00:04]} 74. Rd8+ {[%clk 0:00:08.8]} 74... Kh7 {[%clk 0:00:04]} 75. Ra8 {[%clk
0:00:09.5]} 75... Rb4 {[%clk 0:00:03.6]} 76. Kxf7 {[%clk 0:00:10]} 76... Rf4+
{[%clk 0:00:03.4]} 77. Ke6 {[%clk 0:00:10.2]} 77... Kg6 {[%clk 0:00:03.4]} 78.
Rg8+ {[%clk 0:00:10.8]} 78... Kh7 {[%clk 0:00:03.6]} 79. Rg7+ {[%clk 0:00:11.4]}
79... Kh8 {[%clk 0:00:04.1]} 80. Ra7 {[%clk 0:00:12.1]} 80... Rg4 {[%clk
0:00:01.8]} 81. Kf5 {[%clk 0:00:12.2]} 81... Rb4 {[%clk 0:00:01.6]} 82. g6
{[%clk 0:00:12.5]} 82... Rb5+ {[%clk 0:00:01.6]} 83. Ke4 {[%clk 0:00:13]} 83...
Rb8 {[%clk 0:00:01.5]} 84. Rxa4 {[%clk 0:00:12.6]} 1-0